[Event "NJSK 2023 Jeugd A"]
[Site "Almelo, Netherlands"]
[Date "2023.05.05"]
[Round "6.1"]
[White "De Winter, Arthur"]
[Black "Slagboom, Leandro"]
[Result "0-1"]
[TimeControl "90min/40moves + 30min + 30sec/move"]
[WhiteElo "2374"]
[BlackElo "2228"]

1. e4 {[%clk 01:30:30]} {[%emt 00:04:24]} e5 {[%clk 01:30:55]} {[%emt
00:00:17]} 2. Bc4 {[%clk 01:31:02]} {[%emt 00:00:28]} Nf6 {[%clk 01:31:19]}
{[%emt 00:00:05]} 3. d3 {[%clk 01:31:28]} {[%emt 00:00:04]} Nc6 {[%clk
01:31:37]} {[%emt 00:00:12]} 4. Nc3 {[%clk 01:31:32]} {[%emt 00:00:26]} Bc5
{[%clk 01:31:30]} {[%emt 00:00:36]} 5. f4 {[%clk 01:31:58]} {[%emt 00:00:05]}
O-O {[%clk 01:31:56]} {[%emt 00:00:05]} 6. Nf3 {[%clk 01:31:53]} {[%emt
00:00:34]} exf4 {[%clk 01:32:19]} {[%emt 00:00:07]} 7. Bxf4 {[%clk 01:32:18]}
{[%emt 00:00:04]} d6 {[%clk 01:32:45]} {[%emt 00:00:05]} 8. d4 {[%clk
01:31:49]} {[%emt 00:00:59]} Bb6 {[%clk 01:33:11]} {[%emt 00:00:04]} 9. Bg5
{[%clk 01:31:28]} {[%emt 00:00:51]} Bg4 {[%clk 01:32:39]} {[%emt 00:01:02]} 10.
Qd2 {[%clk 01:31:50]} {[%emt 00:00:08]} Bxf3 {[%clk 01:31:25]} {[%emt
00:01:44]} 11. gxf3 {[%clk 01:32:11]} {[%emt 00:00:09]} Bxd4 {[%clk 01:31:48]}
{[%emt 00:00:07]} 12. O-O-O {[%clk 01:32:09]} {[%emt 00:00:31]} Bxc3 {[%clk
01:31:22]} {[%emt 00:00:57]} 13. bxc3 {[%clk 01:32:18]} {[%emt 00:00:22]} Ne5
{[%clk 01:31:38]} {[%emt 00:00:13]} 14. Be2 {[%clk 01:30:30]} {[%emt 00:02:18]}
Ned7 {[%clk 01:31:28]} {[%emt 00:00:39]} 15. Rhg1 {[%clk 01:24:03]} {[%emt
00:06:58]} Kh8 {[%clk 01:20:52]} {[%emt 00:11:06]} 16. Bb5 {[%clk 01:06:04]}
{[%emt 00:18:29]} Rg8 {[%clk 00:57:28]} {[%emt 00:23:53]} 17. Qd4 {[%clk
00:50:42]} {[%emt 00:15:53]} Ne5 {[%clk 00:52:29]} {[%emt 00:05:29]} 18. Rg3
{[%clk 00:51:00]} {[%emt 00:00:11]} Qe7 {[%clk 00:43:08]} {[%emt 00:09:51]} 19.
f4 {[%clk 00:46:12]} {[%emt 00:05:19]} Nc6 {[%clk 00:41:34]} {[%emt 00:02:04]}
20. Bxc6 {[%clk 00:39:27]} {[%emt 00:07:14]} bxc6 {[%clk 00:41:54]} {[%emt
00:00:10]} 21. c4 {[%clk 00:39:25]} {[%emt 00:00:33]} c5 {[%clk 00:38:19]}
{[%emt 00:04:04]} 22. Qc3 {[%clk 00:39:05]} {[%emt 00:00:51]} Rae8 {[%clk
00:18:06]} {[%emt 00:20:44]} 23. Re1 {[%clk 00:33:46]} {[%emt 00:05:48]} Qe6
{[%clk 00:16:27]} {[%emt 00:02:09]} 24. Rge3 {[%clk 00:32:03]} {[%emt
00:02:14]} Nd7 {[%clk 00:15:40]} {[%emt 00:01:16]} 25. Rh3 {[%clk 00:28:13]}
{[%emt 00:04:19]} Rgf8 {[%clk 00:08:15]} {[%emt 00:07:55]} 26. Rg3 {[%clk
00:19:10]} {[%emt 00:09:33]} f6 {[%clk 00:07:42]} {[%emt 00:01:04]} 27. Bh4
{[%clk 00:19:33]} {[%emt 00:00:07]} Re7 {[%clk 00:07:13]} {[%emt 00:00:59]} 28.
Rge3 {[%clk 00:18:20]} {[%emt 00:01:43]} Ref7 {[%clk 00:05:24]} {[%emt
00:02:19]} 29. Qa5 {[%clk 00:17:09]} {[%emt 00:01:42]} Nb6 {[%clk 00:05:05]}
{[%emt 00:00:48]} 30. Qxa7 {[%clk 00:17:13]} {[%emt 00:00:25]} Qxc4 {[%clk
00:05:06]} {[%emt 00:00:30]} 31. Rb3 {[%clk 00:14:20]} {[%emt 00:03:24]} h6
{[%clk 00:05:20]} {[%emt 00:00:15]} 32. Qb7 {[%clk 00:14:47]} {[%emt 00:00:04]}
Qd4 {[%clk 00:04:16]} {[%emt 00:01:34]} 33. c3 {[%clk 00:11:33]} {[%emt
00:03:43]} Qa4 {[%clk 00:04:34]} {[%emt 00:00:11]} 34. Re2 {[%clk 00:11:42]}
{[%emt 00:00:21]} c4 {[%clk 00:04:27]} {[%emt 00:00:37]} 35. Rbb2 {[%clk
00:11:41]} {[%emt 00:00:32]} Qa8 {[%clk 00:02:06]} {[%emt 00:02:51]} 36. Qxa8
{[%clk 00:11:46]} {[%emt 00:00:24]} Rxa8 {[%clk 00:02:35]} {[%emt 00:00:02]} 37.
Rb4 {[%clk 00:11:45]} {[%emt 00:00:31]} Re7 {[%clk 00:02:15]} {[%emt 00:00:50]}
38. Bf2 {[%clk 00:06:51]} {[%emt 00:05:24]} Nd5 {[%clk 00:02:21]} {[%emt
00:00:25]} 39. Rxc4 {[%clk 00:07:05]} {[%emt 00:00:16]} Nxf4 {[%clk 00:02:43]}
{[%emt 00:00:07]} 40. Rd2 {[%clk 00:07:19]} {[%emt 00:00:16]} Kg8 {[%clk
00:01:00]} {[%emt 00:02:12]} 41. a4 {[%clk 00:01:39]} {[%emt 00:06:11]} g5
{[%clk 00:24:58]} {[%emt 00:06:32]} 42. Bg3 {[%clk 00:27:40]} {[%emt 00:04:29]}
Ne6 {[%clk 00:23:33]} {[%emt 00:01:55]} 43. Bf2 {[%clk 00:28:02]} {[%emt
00:00:08]} Kf7 {[%clk 00:22:13]} {[%emt 00:01:50]} 44. Be3 {[%clk 00:24:19]}
{[%emt 00:04:13]} Nd8 {[%clk 00:16:33]} {[%emt 00:06:10]} 45. Bf2 {[%clk
00:17:36]} {[%emt 00:07:12]} Nb7 {[%clk 00:14:24]} {[%emt 00:02:40]} 46. Rb4
{[%clk 00:13:38]} {[%emt 00:04:29]} c5 {[%clk 00:14:16]} {[%emt 00:00:37]} 47.
Rb6 {[%clk 00:14:06]} {[%emt 00:00:02]} Rxa4 {[%clk 00:14:02]} {[%emt
00:00:44]} 48. Bg3 {[%clk 00:14:10]} {[%emt 00:00:26]} Raxe4 {[%clk 00:12:57]}
{[%emt 00:01:35]} 49. Bxd6 {[%clk 00:14:37]} {[%emt 00:00:03]} Nxd6 {[%clk
00:12:58]} {[%emt 00:00:29]} 50. Rbxd6 {[%clk 00:15:05]} {[%emt 00:00:02]} Re1+
{[%clk 00:11:05]} {[%emt 00:02:23]} 51. Kc2 {[%clk 00:15:32]} {[%emt 00:00:03]}
R1e2 {[%clk 00:11:08]} {[%emt 00:00:27]} 52. Kb3 {[%clk 00:15:46]} {[%emt
00:00:16]} Rxd2 {[%clk 00:11:05]} {[%emt 00:00:33]} 53. Rxd2 {[%clk 00:16:13]}
{[%emt 00:00:03]} Re5 {[%clk 00:10:07]} {[%emt 00:01:27]} 54. Kc4 {[%clk
00:16:30]} {[%emt 00:00:14]} f5 {[%clk 00:09:43]} {[%emt 00:00:54]} 55. Rd6
{[%clk 00:16:54]} {[%emt 00:00:06]} Kg7 {[%clk 00:09:11]} {[%emt 00:01:02]} 0-1

[Event "NJSK 2023 Jeugd A"]
[Site "Almelo, Netherlands"]
[Date "2023.05.05"]
[Round "6.2"]
[White "Moskalets, Sofiia"]
[Black "Van der Hagen, Loek"]
[Result "1/2-1/2"]
[TimeControl "90min/40moves + 30min + 30sec/move"]
[WhiteElo "1722"]
[BlackElo "2273"]

1. e4 {[%clk 01:30:56]} {[%emt 00:00:04]} c5 {[%clk 01:30:55]} {[%emt
00:00:05]} 2. Nf3 {[%clk 01:31:17]} {[%emt 00:00:09]} d6 {[%clk 01:31:19]}
{[%emt 00:00:11]} 3. d4 {[%clk 01:31:42]} {[%emt 00:00:01]} cxd4 {[%clk
01:31:45]} {[%emt 00:00:04]} 4. Nxd4 {[%clk 01:32:07]} {[%emt 00:00:05]} Nf6
{[%clk 01:32:10]} {[%emt 00:00:05]} 5. Nc3 {[%clk 01:32:31]} {[%emt 00:00:07]}
Nc6 {[%clk 01:32:35]} {[%emt 00:00:04]} 6. Bg5 {[%clk 01:32:37]} {[%emt
00:00:23]} Bd7 {[%clk 01:33:00]} {[%emt 00:00:05]} 7. Qd2 {[%clk 01:31:11]}
{[%emt 00:01:56]} a6 {[%clk 01:33:12]} {[%emt 00:00:19]} 8. O-O-O {[%clk
01:30:04]} {[%emt 00:01:36]} e6 {[%clk 01:33:37]} {[%emt 00:00:06]} 9. f4
{[%clk 01:29:25]} {[%emt 00:01:09]} Be7 {[%clk 01:33:58]} {[%emt 00:00:08]} 10.
Nb3 {[%clk 01:21:35]} {[%emt 00:08:20]} b5 {[%clk 01:32:11]} {[%emt 00:02:18]}
11. Bxf6 {[%clk 01:20:15]} {[%emt 00:01:50]} gxf6 {[%clk 01:32:20]} {[%emt
00:00:22]} 12. f5 {[%clk 01:13:00]} {[%emt 00:07:45]} b4 {[%clk 01:18:51]}
{[%emt 00:13:59]} 13. Ne2 {[%clk 01:07:45]} {[%emt 00:05:44]} e5 {[%clk
01:18:24]} {[%emt 00:00:58]} 14. Qd5 {[%clk 00:56:16]} {[%emt 00:11:59]} h5
{[%clk 01:06:28]} {[%emt 00:12:25]} 15. Ng3 {[%clk 00:54:06]} {[%emt 00:02:40]}
Qb6 {[%clk 00:54:23]} {[%emt 00:12:35]} 16. Bc4 {[%clk 00:51:33]} {[%emt
00:03:03]} Rh7 {[%clk 00:54:52]} {[%emt 00:00:01]} 17. Nxh5 {[%clk 00:43:48]}
{[%emt 00:08:14]} a5 {[%clk 00:51:39]} {[%emt 00:03:44]} 18. g4 {[%clk
00:30:13]} {[%emt 00:14:04]} a4 {[%clk 00:51:34]} {[%emt 00:00:35]} 19. Nd2
{[%clk 00:29:23]} {[%emt 00:01:21]} b3 {[%clk 00:27:22]} {[%emt 00:24:42]} 20.
c3 {[%clk 00:20:37]} {[%emt 00:09:16]} bxa2 {[%clk 00:15:01]} {[%emt 00:12:51]}
21. Bxa2 {[%clk 00:20:03]} {[%emt 00:01:03]} Qe3 {[%clk 00:09:24]} {[%emt
00:06:07]} 22. Rhe1 {[%clk 00:11:05]} {[%emt 00:09:28]} Qg5 {[%clk 00:07:47]}
{[%emt 00:02:07]} 23. h3 {[%clk 00:09:21]} {[%emt 00:02:14]} Ra7 {[%clk
00:05:46]} {[%emt 00:02:33]} 24. Kb1 {[%clk 00:09:04]} {[%emt 00:00:47]} Na5
{[%clk 00:06:11]} {[%emt 00:00:05]} 25. Nc4 {[%clk 00:07:09]} {[%emt 00:02:26]}
Nxc4 {[%clk 00:06:36]} {[%emt 00:00:05]} 26. Qxc4 {[%clk 00:07:20]} {[%emt
00:00:18]} Kf8 {[%clk 00:06:43]} {[%emt 00:00:23]} 27. Qb4 {[%clk 00:07:05]}
{[%emt 00:00:45]} Be8 {[%clk 00:05:19]} {[%emt 00:01:53]} 28. Qb8 {[%clk
00:06:54]} {[%emt 00:00:41]} Rd7 {[%clk 00:05:31]} {[%emt 00:00:18]} 29. Bd5
{[%clk 00:05:38]} {[%emt 00:01:47]} Rd8 {[%clk 00:05:27]} {[%emt 00:00:34]} 30.
Qb6 {[%clk 00:05:42]} {[%emt 00:00:26]} Qh4 {[%clk 00:04:39]} {[%emt 00:01:17]}
31. Qe3 {[%clk 00:04:52]} {[%emt 00:01:20]} Rb8 {[%clk 00:04:24]} {[%emt
00:00:46]} 32. Ka1 {[%clk 00:04:40]} {[%emt 00:00:42]} Rc8 {[%clk 00:04:15]}
{[%emt 00:00:39]} 33. Rg1 {[%clk 00:04:02]} {[%emt 00:01:07]} Rc5 {[%clk
00:03:58]} {[%emt 00:00:48]} 34. Qg3 {[%clk 00:04:00]} {[%emt 00:00:32]} Qg5
{[%clk 00:03:34]} {[%emt 00:00:54]} 35. h4 {[%clk 00:03:26]} {[%emt 00:01:04]}
Qh6 {[%clk 00:04:03]} 36. Qd3 {[%clk 00:02:04]} {[%emt 00:01:52]} Bb5 {[%clk
00:04:18]} {[%emt 00:00:14]} 37. c4 {[%clk 00:02:06]} {[%emt 00:00:28]} Ba6
{[%clk 00:03:26]} {[%emt 00:01:23]} 38. Qc3 {[%clk 00:01:51]} {[%emt 00:00:45]}
Bb5 {[%clk 00:02:39]} {[%emt 00:01:17]} 39. Qd3 {[%clk 00:01:53]} {[%emt
00:00:28]} Ba6 {[%clk 00:02:55]} {[%emt 00:00:14]} 40. Rg3 {[%clk 00:02:03]}
{[%emt 00:00:20]} Rh8 {[%clk 00:01:27]} {[%emt 00:01:59]} 41. Qc3 {[%clk
00:01:16]} {[%emt 00:01:16]} Bd8 {[%clk 00:29:50]} {[%emt 00:02:07]} 42. Qb4
{[%clk 00:27:27]} {[%emt 00:04:18]} Ke7 {[%clk 00:21:21]} {[%emt 00:08:59]} 43.
Qb8 {[%clk 00:14:40]} {[%emt 00:13:18]} Bc7 {[%clk 00:18:59]} {[%emt 00:02:52]}
44. Qa7 {[%clk 00:14:44]} {[%emt 00:00:25]} Rb8 {[%clk 00:15:31]} {[%emt
00:03:58]} 45. Qxa6 {[%clk 00:09:42]} {[%emt 00:05:33]} Ra5 {[%clk 00:15:56]}
{[%emt 00:00:05]} 46. Qc6 {[%clk 00:04:52]} {[%emt 00:05:20]} Rc5 {[%clk
00:16:21]} {[%emt 00:00:04]} 47. Qa6 {[%clk 00:02:07]} {[%emt 00:03:16]} Ra5
{[%clk 00:16:49]} {[%emt 00:00:01]} 1/2-1/2

[Event "NJSK 2023 Jeugd A"]
[Site "Almelo, Netherlands"]
[Date "2023.05.05"]
[Round "6.3"]
[White "Achuthan, Dylan"]
[Black "Boeren, Jurriaan"]
[Result "1-0"]
[TimeControl "90min/40moves + 30min + 30sec/move"]
[WhiteElo "2045"]
[BlackElo "1979"]

1. d4 {[%clk 01:29:38]} {[%emt 00:01:22]} d5 {[%clk 01:30:52]} {[%emt
00:00:07]} 2. Nf3 {[%clk 01:28:02]} {[%emt 00:02:07]} Nf6 {[%clk 01:30:24]}
{[%emt 00:00:58]} 3. Bg5 {[%clk 01:28:25]} {[%emt 00:00:07]} e6 {[%clk
01:24:45]} {[%emt 00:06:08]} 4. e3 {[%clk 01:27:53]} {[%emt 00:01:02]} Be7
{[%clk 01:23:45]} {[%emt 00:01:30]} 5. Bd3 {[%clk 01:28:01]} {[%emt 00:00:23]}
O-O {[%clk 01:23:04]} {[%emt 00:01:10]} 6. Nbd2 {[%clk 01:28:08]} {[%emt
00:00:23]} b6 {[%clk 01:21:16]} {[%emt 00:02:19]} 7. Ne5 {[%clk 01:27:01]}
{[%emt 00:01:37]} Bb7 {[%clk 01:19:58]} {[%emt 00:01:48]} 8. Qf3 {[%clk
01:25:56]} {[%emt 00:01:34]} Nbd7 {[%clk 01:18:21]} {[%emt 00:02:07]} 9. Nxd7
{[%emt 00:05:28]} Qxd7 {[%clk 01:15:39]} {[%emt 00:03:11]} 10. h4 {[%clk
01:19:36]} {[%emt 00:01:52]} c5 {[%clk 01:11:53]} {[%emt 00:04:16]} 11. c3
{[%clk 01:18:54]} {[%emt 00:01:13]} Rfe8 {[%clk 00:58:58]} {[%emt 00:13:24]} 12.
Rh3 {[%clk 01:02:57]} {[%emt 00:16:27]} h6 {[%clk 00:53:50]} {[%emt 00:05:38]}
13. Bxh6 {[%clk 00:57:14]} {[%emt 00:06:14]} gxh6 {[%clk 00:54:02]} {[%emt
00:00:18]} 14. Qf4 {[%clk 00:57:35]} {[%emt 00:00:09]} Ne4 {[%clk 00:47:23]}
{[%emt 00:07:09]} 15. Nxe4 {[%clk 00:41:34]} {[%emt 00:16:31]} dxe4 {[%clk
00:45:52]} {[%emt 00:02:01]} 16. Rg3+ {[%clk 00:41:36]} {[%emt 00:00:28]} Bg5
{[%clk 00:45:09]} {[%emt 00:01:13]} 17. hxg5 {[%clk 00:42:00]} {[%emt
00:00:06]} h5 {[%clk 00:39:06]} {[%emt 00:06:33]} 18. g6 {[%clk 00:24:28]}
{[%emt 00:18:02]} f5 {[%clk 00:36:27]} {[%emt 00:03:08]} 19. Bb5 {[%clk
00:24:40]} {[%emt 00:00:19]} Qxb5 {[%clk 00:35:50]} {[%emt 00:01:07]} 20. Qc7
{[%clk 00:24:53]} {[%emt 00:00:16]} Ba6 {[%clk 00:35:49]} {[%emt 00:00:32]} 21.
Qf7+ {[%clk 00:25:17]} {[%emt 00:00:06]} Kh8 {[%clk 00:36:15]} {[%emt
00:00:03]} 22. Qh7# {[%clk 00:25:12]} {[%emt 00:00:05]} 1-0

[Event "NJSK 2023 Jeugd A"]
[Site "Almelo, Netherlands"]
[Date "2023.05.05"]
[Round "6.4"]
[White "Van Kuijk, Vadim"]
[Black "Wierenga, Jael"]
[Result "1-0"]
[TimeControl "90min/40moves + 30min + 30sec/move"]
[WhiteElo "1968"]
[BlackElo "1772"]

1. e4 {[%clk 01:29:34]} {[%emt 00:01:25]} e6 {[%clk 01:30:56]} {[%emt
00:00:05]} 2. d4 {[%emt 00:00:12]} d5 {[%clk 01:31:22]} 3. Nc3 {[%clk
01:30:16]} {[%emt 00:00:08]} Nf6 {[%clk 01:31:46]} {[%emt 00:00:07]} 4. e5
{[%clk 01:30:32]} {[%emt 00:00:14]} Nfd7 {[%clk 01:32:11]} {[%emt 00:00:06]} 5.
f4 {[%clk 01:30:54]} {[%emt 00:00:08]} c5 {[%clk 01:32:38]} {[%emt 00:00:03]} 6.
Nf3 {[%clk 01:31:18]} {[%emt 00:00:06]} Nc6 {[%clk 01:33:04]} {[%emt 00:00:03]}
7. Be3 {[%clk 01:30:46]} {[%emt 00:01:02]} Be7 {[%clk 01:32:43]} {[%emt
00:00:51]} 8. Be2 {[%clk 01:27:08]} {[%emt 00:04:09]} a6 {[%clk 01:31:19]}
{[%emt 00:01:54]} 9. O-O {[%clk 01:24:29]} {[%emt 00:03:08]} b5 {[%clk
01:30:08]} {[%emt 00:01:42]} 10. f5 {[%clk 01:17:28]} {[%emt 00:07:31]} cxd4
{[%clk 01:24:45]} {[%emt 00:05:52]} 11. fxe6 {[%clk 01:12:47]} {[%emt
00:05:11]} fxe6 {[%clk 01:23:07]} {[%emt 00:02:09]} 12. Bxd4 {[%clk 00:58:29]}
{[%emt 00:14:47]} Nxd4 {[%clk 01:22:51]} {[%emt 00:00:46]} 13. Nxd4 {[%clk
00:58:51]} {[%emt 00:00:09]} Nxe5 {[%clk 01:21:52]} {[%emt 00:01:29]} 14. Bh5+
{[%clk 00:52:59]} {[%emt 00:06:21]} g6 {[%clk 01:21:46]} {[%emt 00:00:36]} 15.
Qe2 {[%clk 00:51:35]} {[%emt 00:01:54]} Bf6 {[%clk 01:16:13]} {[%emt 00:06:04]}
16. Rxf6 {[%clk 00:28:09]} {[%emt 00:23:55]} Qxf6 {[%clk 01:16:20]} {[%emt
00:00:23]} 17. Rf1 {[%clk 00:28:35]} {[%emt 00:00:05]} Qg5 {[%clk 01:12:38]}
{[%emt 00:04:11]} 18. Rf5 {[%clk 00:28:20]} {[%emt 00:00:45]} exf5 {[%clk
01:04:10]} {[%emt 00:08:58]} 19. Qxe5+ {[%clk 00:20:04]} {[%emt 00:08:46]} Qe7
{[%clk 01:04:31]} {[%emt 00:00:09]} 20. Qxh8+ {[%clk 00:19:58]} {[%emt
00:00:36]} Kd7 {[%clk 01:04:46]} {[%emt 00:00:15]} 21. Nf3 {[%clk 00:20:07]}
{[%emt 00:00:21]} gxh5 {[%clk 00:58:19]} {[%emt 00:06:57]} 22. Qd4 {[%clk
00:19:39]} {[%emt 00:00:59]} Ke8 {[%clk 00:43:20]} {[%emt 00:15:28]} 23. Nxd5
{[%clk 00:18:43]} {[%emt 00:01:26]} Qd6 {[%clk 00:29:08]} {[%emt 00:14:42]} 24.
Qh8+ {[%clk 00:09:33]} {[%emt 00:09:41]} Kd7 {[%clk 00:28:45]} {[%emt
00:00:52]} 25. Ne5+ {[%clk 00:08:56]} {[%emt 00:01:07]} Ke6 {[%clk 00:28:36]}
{[%emt 00:00:39]} 26. Nf4+ {[%clk 00:08:35]} {[%emt 00:00:51]} Ke7 {[%clk
00:28:17]} {[%emt 00:00:49]} 27. Qxh7+ {[%clk 00:08:41]} {[%emt 00:00:25]} Ke8
{[%clk 00:27:04]} {[%emt 00:01:43]} 28. Qxh5+ {[%clk 00:08:37]} {[%emt
00:00:34]} Ke7 {[%clk 00:27:05]} {[%emt 00:00:27]} 29. Qh7+ {[%clk 00:06:22]}
{[%emt 00:02:46]} Ke8 {[%clk 00:27:17]} {[%emt 00:00:18]} 30. Qg8+ {[%clk
00:06:34]} {[%emt 00:00:18]} Ke7 {[%clk 00:26:55]} {[%emt 00:00:49]} 31. Nd5+
{[%clk 00:06:52]} {[%emt 00:00:15]} 1-0

[Event "NJSK 2023 Jeugd A"]
[Site "Almelo, Netherlands"]
[Date "2023.05.05"]
[Round "6.5"]
[White "Goudriaan, Rafael"]
[Black "Groen, Jari"]
[Result "1/2-1/2"]
[TimeControl "90min/40moves + 30min + 30sec/move"]
[WhiteElo "1992"]
[BlackElo "2028"]

1. e4 {[%emt 00:00:34]} c5 {[%clk 01:29:13]} {[%emt 00:01:14]} 2. Nf3 {[%clk
01:31:21]} {[%emt 00:00:07]} Nc6 {[%clk 01:29:18]} {[%emt 00:00:27]} 3. d4
{[%clk 01:30:32]} {[%emt 00:01:17]} cxd4 {[%clk 01:29:40]} {[%emt 00:00:08]} 4.
Nxd4 {[%clk 01:30:58]} {[%emt 00:00:03]} Nf6 {[%clk 01:29:59]} {[%emt
00:00:13]} 5. Nc3 {[%clk 01:31:21]} {[%emt 00:00:05]} e5 {[%clk 01:29:49]}
{[%emt 00:00:41]} 6. Ndb5 {[%clk 01:31:22]} {[%emt 00:00:28]} d6 {[%clk
01:30:01]} {[%emt 00:00:19]} 7. Bg5 {[%clk 01:31:29]} {[%emt 00:00:21]} a6
{[%clk 01:29:53]} {[%emt 00:00:39]} 8. Na3 {[%clk 01:31:56]} {[%emt 00:00:03]}
b5 {[%clk 01:29:59]} {[%emt 00:00:24]} 9. Nd5 {[%clk 01:32:17]} {[%emt
00:00:08]} Be7 {[%clk 01:29:41]} {[%emt 00:00:50]} 10. Bxf6 {[%clk 01:32:38]}
{[%emt 00:00:08]} Bxf6 {[%clk 01:30:05]} {[%emt 00:00:06]} 11. c3 {[%clk
01:31:48]} {[%emt 00:01:20]} Rb8 {[%clk 01:22:39]} {[%emt 00:07:57]} 12. Nc2
{[%clk 01:31:35]} {[%emt 00:00:42]} Bg5 {[%clk 01:16:34]} {[%emt 00:06:35]} 13.
b3 {[%clk 01:17:18]} {[%emt 00:14:48]} O-O {[%clk 01:09:22]} {[%emt 00:07:42]}
14. a4 {[%clk 01:16:27]} {[%emt 00:01:21]} Be6 {[%clk 00:54:52]} {[%emt
00:15:00]} 15. axb5 {[%clk 01:11:46]} {[%emt 00:05:11]} axb5 {[%clk 00:55:15]}
{[%emt 00:00:07]} 16. h4 {[%clk 01:11:52]} {[%emt 00:00:23]} Bh6 {[%clk
00:49:48]} {[%emt 00:05:58]} 17. g4 {[%clk 01:09:05]} {[%emt 00:03:16]} Bf4
{[%clk 00:47:28]} {[%emt 00:02:50]} 18. Ra6 {[%clk 01:06:49]} {[%emt 00:02:47]}
Bxd5 {[%clk 00:42:07]} {[%emt 00:05:50]} 19. Qxd5 {[%clk 01:06:21]} {[%emt
00:00:58]} Ne7 {[%clk 00:41:38]} {[%emt 00:00:59]} 20. Qd3 {[%clk 01:06:03]}
{[%emt 00:00:48]} d5 {[%clk 00:36:32]} {[%emt 00:05:37]} 21. Nb4 {[%clk
00:51:36]} {[%emt 00:14:56]} dxe4 {[%clk 00:31:56]} {[%emt 00:05:07]} 22. Qxd8
{[%clk 00:51:37]} {[%emt 00:00:27]} Rfxd8 {[%clk 00:31:40]} {[%emt 00:00:47]}
23. Ra2 {[%clk 00:51:55]} {[%emt 00:00:12]} Ra8 {[%clk 00:22:08]} {[%emt
00:10:02]} 24. Rxa8 {[%clk 00:41:16]} {[%emt 00:11:09]} Rxa8 {[%clk 00:22:32]}
{[%emt 00:00:07]} 25. Rh3 {[%clk 00:41:05]} {[%emt 00:00:41]} Ra1+ {[%clk
00:20:17]} {[%emt 00:02:45]} 26. Ke2 {[%clk 00:41:30]} {[%emt 00:00:05]} Rb1
{[%clk 00:19:52]} {[%emt 00:00:55]} 27. Bg2 {[%clk 00:41:30]} {[%emt 00:00:30]}
Rb2+ {[%clk 00:17:28]} {[%emt 00:02:54]} 28. Ke1 {[%clk 00:40:55]} {[%emt
00:01:05]} e3 {[%clk 00:09:40]} {[%emt 00:08:18]} 29. Nd3 {[%clk 00:28:25]}
{[%emt 00:12:59]} exf2+ {[%clk 00:09:18]} {[%emt 00:00:52]} 30. Nxf2 {[%clk
00:28:53]} {[%emt 00:00:02]} Rxb3 {[%clk 00:08:44]} {[%emt 00:01:05]} 31. Rd3
{[%clk 00:29:18]} {[%emt 00:00:05]} g6 {[%clk 00:04:34]} {[%emt 00:04:40]} 32.
Ne4 {[%clk 00:27:39]} {[%emt 00:02:09]} f5 {[%clk 00:01:18]} {[%emt 00:03:46]}
33. Nf6+ {[%clk 00:24:43]} {[%emt 00:03:25]} Kg7 {[%clk 00:00:54]} {[%emt
00:00:55]} 34. g5 {[%clk 00:22:27]} {[%emt 00:02:44]} e4 {[%clk 00:01:06]}
{[%emt 00:00:19]} 35. Rd7 {[%clk 00:22:16]} {[%emt 00:00:41]} Kf7 {[%clk
00:00:39]} {[%emt 00:00:58]} 36. Bf1 {[%clk 00:17:35]} {[%emt 00:05:10]} Bg3+
{[%clk 00:00:45]} {[%emt 00:00:24]} 37. Ke2 {[%clk 00:17:28]} {[%emt 00:00:36]}
Bxh4 {[%clk 00:00:57]} {[%emt 00:00:20]} 38. Nxh7 {[%clk 00:17:24]} {[%emt
00:00:33]} Rxc3 {[%clk 00:00:53]} {[%emt 00:00:35]} 39. Kd2 {[%clk 00:17:43]}
{[%emt 00:00:10]} Rc5 {[%clk 00:00:49]} {[%emt 00:00:34]} 40. Ke3 {[%clk
00:17:29]} {[%emt 00:00:45]} Ke6 {[%clk 00:00:36]} {[%emt 00:00:43]} 41. Nf8+
{[%clk 00:16:28]} {[%emt 00:01:29]} Kf7 {[%clk 00:28:58]} {[%emt 00:02:44]} 42.
Nh7 {[%clk 00:45:11]} {[%emt 00:01:46]} Rc3+ {[%clk 00:13:19]} {[%emt
00:16:10]} 43. Kd4 {[%clk 00:32:06]} {[%emt 00:13:35]} Rc1 {[%clk 00:07:58]}
{[%emt 00:05:52]} 44. Be2 {[%clk 00:32:01]} {[%emt 00:00:35]} Re1 {[%clk
00:06:29]} {[%emt 00:01:59]} 45. Ke3 {[%clk 00:31:54]} {[%emt 00:00:36]} f4+
{[%clk 00:05:14]} {[%emt 00:01:45]} 46. Kd2 {[%clk 00:32:20]} {[%emt 00:00:04]}
Rg1 {[%clk 00:01:12]} {[%emt 00:04:32]} 47. Bxb5 {[%clk 00:31:36]} {[%emt
00:01:14]} Bxg5 {[%clk 00:01:19]} {[%emt 00:00:24]} 48. Bc4+ {[%clk 00:30:46]}
{[%emt 00:01:19]} Ke8 {[%clk 00:01:37]} {[%emt 00:00:13]} 49. Bb5 {[%clk
00:31:11]} {[%emt 00:00:05]} Bh4 {[%clk 00:00:50]} {[%emt 00:01:17]} 50. Rd4+
{[%clk 00:30:14]} {[%emt 00:01:25]} Kf7 {[%clk 00:01:06]} {[%emt 00:00:15]} 51.
Rxe4 {[%clk 00:30:21]} {[%emt 00:00:23]} g5 {[%clk 00:00:52]} {[%emt 00:00:45]}
52. Bc4+ {[%clk 00:30:35]} {[%emt 00:00:16]} Ke8 {[%clk 00:00:44]} {[%emt
00:00:38]} 53. Nf6+ {[%clk 00:31:00]} {[%emt 00:00:04]} Kf8 {[%clk 00:00:42]}
{[%emt 00:00:32]} 54. Nd7+ {[%clk 00:30:27]} {[%emt 00:01:03]} 1/2-1/2